Cogmind - Beta 13 @@@ ROGUE MODE // 2024.05.10 @ 19:12:05 Player: Gabe+Kate4EVR Result: Destroyed by S-43 Plague with Heavy Machine Gun Performance ------------- Evolutions (7) 3500 Regions Visited (9) 1800 Robots Destroyed (32) 160 Value Destroyed (714) 714 Prototype IDs (5) 100 Alien Tech Used (0) 0 Bonus (601) 601 TOTAL SCORE: 6875 Bonus ------- High Alert Combat Kills 30 Follower Combat Kills 89 Entered DSFs 500 Friendly Fire -18 Cogmind --------- Core Integrity 0/1300 Matter 71/300 Energy 13/100 System Corruption 10% Temperature Cool (0) Movement Core (50) Location -3/Research Parts ------- > --- POWER (2) -------- (None) > --- PROPULSION (12) -- (None) > --- UTILITY (5) ------ (None) > --- WEAPON (2) ------- (None) > --- INVENTORY (5) ---- Improved Plasma Cutter Peak State ------------ > --- POWER ------------ Improved Deuterium Engine Light Antimatter Reactor > --- PROPULSION ------- Cooled VTOL Module Cooled VTOL Module Impulse Thruster Array Impulse Thruster Array Impulse Thruster Array Impulse Thruster Array Impulse Thruster Array > --- UTILITY ---------- Improved Coolant Injector Medium Storage Unit Advanced Weight Redist. System > --- WEAPON ----------- (None) > --- INVENTORY -------- Surge Thruster Surge Thruster Impulse Thruster Array Advanced Signal Interpreter Reaction Control System Heavy Rocket Launcher Improved Plasma Cutter [Rating: 115] Favorites ----------- Power Improved Deuterium Engine Engine Improved Deuterium Engine Power Core Light Nuclear Core Reactor Particle Reactor Propulsion Improved Flight Unit Leg Carbon-fiber Leg Flight Unit Improved Flight Unit Utility Medium Storage Unit Device Improved Heat Sink Storage Medium Storage Unit Processor Target Analyzer Hackware Hacking Suite Protection Improved Propulsion Shielding Weapon Improved Light Cannon Energy Gun Small Laser Ballistic Gun Assault Rifle Ballistic Cannon Improved Light Cannon Launcher Proton Missile Launcher Build | -11 -10 -9 -8 -7 -6 -5 -4 -4 -3 ------- Run | Yrd Mat Mat Mat Fac Fac Fac Fac DSF Res Slots Evolved 14 | . . 2 2 2 2 2 2 . 2 Power 1 | . . . . 1 . . . . . Propulsion 10 | . . 1 2 1 2 . 2 . 2 Utility 3 | . . 1 . . . 2 . . . Weapon . | . . . . . . . . . . Parts Attached 98 | 7 4 10 14 14 12 16 1 4 16 Power 23 | 1 . . 4 7 3 4 . . 4 Engine 13 | 1 . . 4 3 3 2 . . . Core 6 | . . . . 4 . 2 . . . Reactor 4 | . . . . . . . . . 4 Propulsion 48 | 2 . 8 6 6 8 6 . 4 8 Treads . | . . . . . . . . . . Leg 8 | 2 . 6 . . . . . . . Wheel . | . . . . . . . . . . Hover . | . . . . . . . . . . Flight 40 | . . 2 6 6 8 6 . 4 8 Utility 14 | 1 2 2 1 . 1 4 1 . 2 Device 6 | . . . . . 1 3 1 . 1 Storage 2 | 1 1 . . . . . . . . Processor 3 | . 1 1 . . . . . . 1 Hackware 2 | . . 1 . . . 1 . . . Protection 1 | . . . 1 . . . . . . Artifact . | . . . . . . . . . . Weapon 13 | 3 2 . 3 1 . 2 . . 2 Energy Gun 5 | 2 . . 2 . . 1 . . . Energy Cannon . | . . . . . . . . . . Ballistic Gun 1 | 1 . . . . . . . . . Ballistic Cannon 3 | . 2 . 1 . . . . . . Launcher 4 | . . . . 1 . 1 . . 2 Special Weapon . | . . . . . . . . . . Impact Weapon . | . . . . . . . . . . Slashing Weapon . | . . . . . . . . . . Piercing Weapon . | . . . . . . . . . . Special Melee Weapon . | . . . . . . . . . . Unidentified Prototypes 3 | . . 1 1 1 . . . . . Parts Lost 39 | . . 2 3 . . 9 . 4 21 Power 6 | . . 1 . . . . . 1 4 Propulsion 24 | . . 1 2 . . 6 . 1 14 Utility 6 | . . . . . . 2 . 2 2 Weapon 3 | . . . 1 . . 1 . . 1 Highest Loss Streak 13 | . . 2 2 . . 9 . 13 13 To Critical Strikes 1 | . . 1 . . . . . . . Average Slot Usage (%) 88 | . 97 97 83 98 92 85 73 64 37 Engine 8 | . 14 11 7 8 4 11 10 10 . Core 2 | . . . . 5 8 . . . . Leg 9 | . 28 32 6 . . . . . . Flight 29 | . . . 24 46 52 47 36 32 20 Device 3 | . . . . . 6 8 21 15 7 Storage 8 | . 14 11 9 7 6 5 5 5 3 Processor 5 | . 11 14 9 7 . . . . . Hackware 1 | . . 6 5 . . . . . . Protection 3 | . . . 3 7 6 4 . . . Energy Gun 2 | . 1 . 6 6 . 1 . . . Ballistic Cannon 8 | . 25 21 10 6 . . . . . Launcher 1 | . . . . . 6 3 . . . Naked Turns 7 | . . . . . . . . . 7 Heaviest Build 41 | 14 23 23 24 30 41 40 33 33 33 Greatest Support 99 | 20 20 45 30 30 41 42 38 83 99 Greatest Overweight (x) 6 | 1 1 2 6 . 1 1 . . . Average Overweight (x) . | . . . . . . . . . . Largest Inventory Capacity 10 | 8 10 10 10 10 10 10 10 10 10 Average Capacity 9 | 7 9 10 10 10 10 10 10 10 8 Most Carried 10 | 4 10 10 10 10 10 10 4 10 8 Average Carried 8 | 2 8 9 8 9 9 9 4 6 4 Final Capacity 10 | 8 10 10 10 10 10 10 10 10 5 Final Carried 10 | 4 10 10 10 10 10 5 4 10 1 Class Distribution -------------------- 60% | Sprinter 39% | Mutant Dominant Class ---------------- Mutant | -10/Materials Mutant | -9/Materials Sprinter | -8/Materials Sprinter | -7/Factory Sprinter | -6/Factory Sprinter | -5/Factory Sprinter | -4/Factory Sprinter | -4/DSF Mutant | -3/Research Resources | -11 -10 -9 -8 -7 -6 -5 -4 -4 -3 ----------- Run | Yrd Mat Mat Mat Fac Fac Fac Fac DSF Res Matter Collected 1151 | 153 54 90 423 165 106 129 . . 31 Remotely . | . . . . . . . . . . Salvage Created 571 | . 42 147 51 146 . 92 . . 93 Parts 50 | . 11 14 5 9 . 4 . . 7 Haulers Intercepted 3 | . . 1 . 2 . . . . . Recyclers Shooed 2 | . . . . . . 2 . . . Parts Field Recycled . | . . . . . . . . . . Retrieved Matter . | . . . . . . . . . . Parts Self-Destructed . | . . . . . . . . . . Prevented . | . . . . . . . . . . Kills | -11 -10 -9 -8 -7 -6 -5 -4 -4 -3 ------- Run | Yrd Mat Mat Mat Fac Fac Fac Fac DSF Res Combat Hostiles Destroyed 20 | . 2 4 3 1 . 2 . . 8 Guns 4 | . . . 3 . . 1 . . . Cannons 7 | . 2 4 . 1 . . . . . AOE 8 | . . . . . . . . . 8 Classes Destroyed 8 | . 3 4 . 1 . . . . . Worker 2 | . . 1 . 1 . . . . . Builder 3 | . 2 . . 1 . . . . . Hauler 3 | . . 1 . 2 . . . . . Operator 2 | . . 1 1 . . . . . . Watcher 2 | . 1 1 . . . . . . . Swarmer 17 | . 2 3 3 . . 1 . . 8 Grunt 2 | . . 1 . . . 1 . . . Hunter 1 | . . . . 1 . . . . . Best Kill Streak 5 | . 4 2 3 4 . 2 . . 5 Combat Bots Only 5 | . 1 2 3 1 . 2 . . 5 Max Kills in Single Turn 2 | . 1 1 1 1 . 1 . . 2 Gunslinging . | . . . . . . . . . . Exploded 2 | . . . . . . . . . 2 Melee . | . . . . . . . . . . Uniques/NPCs Destroyed . | . . . . . . . . . . Combat | -11 -10 -9 -8 -7 -6 -5 -4 -4 -3 -------- Run | Yrd Mat Mat Mat Fac Fac Fac Fac DSF Res Hostile Shots Fired 479 | . 15 47 38 9 . 74 . 6 290 Missed 223 | . 3 13 9 8 . 33 . 3 154 Damage Taken 5136 | . 101 345 557 5 . 857 . 179 3092 Core 1591 | . 16 45 123 . . 64 . 21 1322 Absorbed by Shields . | . . . . . . . . . . Redirected to Shielding 63 | . . . . . . 63 . . . Core Remaining (%) 93 | 100 93 88 77 100 100 93 . 98 . Volleys Fired 67 | . 9 16 8 9 . 16 . . 9 Largest 2 | . 2 2 2 2 . 2 . . 1 Hottest 120 | . 78 78 84 84 . 120 . . 39 Shots Fired 100 | . 18 28 10 18 . 17 . . 9 Gun 31 | . . . 7 9 . 15 . . . Cannon 58 | . 18 28 3 9 . . . . . Launcher 11 | . . . . . . 2 . . 9 Special . | . . . . . . . . . . Kinetic 58 | . 18 28 3 9 . . . . . Thermal 31 | . . . 7 9 . 15 . . . Explosive 10 | . . . . . . 1 . . 9 Electromagnetic 1 | . . . . . . 1 . . . Robot Hit Streak 14 | . 2 4 13 14 . 7 . . 2 Robot Miss Streak 5 | . 2 5 . 2 . 2 . . 2 Penetration Max . | . . . . . . . . . . Secondary Targets . | . . . . . . . . . . Shots Hit Robots 58 | . 8 12 10 14 . 11 . . 3 Core Hits 44 | . 5 8 4 7 . 6 . . 14 Critical Kills . | . . . . . . . . . . Critical Parts Destroyed . | . . . . . . . . . . Critical Strikes 2 | . . . . 2 . . . . . Blast 2 | . . . . 2 . . . . . Melee Attacks . | . . . . . . . . . . Impact . | . . . . . . . . . . Slashing . | . . . . . . . . . . Piercing . | . . . . . . . . . . Sneak Attacks . | . . . . . . . . . . Combat Hostiles . | . . . . . . . . . . Follow-up Attacks . | . . . . . . . . . . Damage Inflicted 2242 | . 167 252 145 285 . 341 . . 1052 Guns 410 | . . . 75 71 . 264 . . . Cannons 702 | . 167 252 69 214 . . . . . Explosions 1129 | . . . . . . 77 . . 1052 Melee . | . . . . . . . . . . Ramming 1 | . . . 1 . . . . . . Kinetic 702 | . 167 252 69 214 . . . . . Thermal 410 | . . . 75 71 . 264 . . . Explosive 1058 | . . . . . . 6 . . 1052 Electromagnetic 71 | . . . . . . 71 . . . Impact . | . . . . . . . . . . Slashing . | . . . . . . . . . . Piercing . | . . . . . . . . . . Highest Corruption 10 | . . . . . . 5 . . 10 Average Corruption 5 | . . . . . . 4 . . 5 Corruption Purged . | . . . . . . . . . . Corruption Blocked . | . . . . . . . . . . Effects 4 | . . . . . . . . . 4 Message Errors 3 | . . . . . . . . . 3 Data Loss (minor) 1 | . . . . . . . . . 1 Overload Shots . | . . . . . . . . . . Overflow Damage 54 | . . 1 . . . . . . 53 Projectiles 1 | . . 1 . . . . . . . Explosions 53 | . . . . . . . . . 53 Melee . | . . . . . . . . . . Knockbacks 4 | . 2 1 1 . . . . . . Impact . | . . . . . . . . . . Kinetic 4 | . 2 1 1 . . . . . . Secondary . | . . . . . . . . . . Self-Inflicted Damage 23 | . . . . . . 23 . . . Shots 1 | . . . . . . 1 . . . Rammed . | . . . . . . . . . . Targets Rammed 1 | . . . 1 . . . . . . Kicked 1 | . . . 1 . . . . . . Crushed . | . . . . . . . . . . Highest Temperature 202 | . 54 27 6 202 84 141 . . 199 Average Temperature 43 | . 21 9 4 62 19 21 . . 115 Received Heat Transfer 202 | . . 45 . . . 27 . . 130 Siege Activations . | . . . . . . . . . . Robots Corrupted . | . . . . . . . . . . Combat Hostiles . | . . . . . . . . . . Parts Fried . | . . . . . . . . . . Impact Corruptions . | . . . . . . . . . . Robots Melted 1 | . . . . . . 1 . . . Combat Hostiles 1 | . . . . . . 1 . . . Parts Melted 1 | . . . . . . 1 . . . Heat Transferred 738 | . . . 175 156 . 407 . . . Parts Sabotaged . | . . . . . . . . . . Parts Stolen . | . . . . . . . . . . Parts Stripped . | . . . . . . . . . . Power Chain Reactions . | . . . . . . . . . . Alert | -11 -10 -9 -8 -7 -6 -5 -4 -4 -3 ------- Run | Yrd Mat Mat Mat Fac Fac Fac Fac DSF Res Peak Influence 649 | . 97 107 115 144 59 247 95 70 649 Initial 95 | . . . . . . 28 95 70 24 Average 55 | . 19 18 51 61 12 48 95 55 404 Maximum Alert Level 2 | . . . . . . 1 . . 2 Low Security (%) 95 | 100 100 100 100 100 100 97 100 100 33 Level 1 . | . . . . . . 2 . . 8 Level 2 3 | . . . . . . . . . 58 Level 3 . | . . . . . . . . . . Level 4 . | . . . . . . . . . . Level 5 . | . . . . . . . . . . High Security . | . . . . . . . . . . Max Security . | . . . . . . . . . . Squads Dispatched 21 | . . 1 2 5 2 4 . 1 6 Investigation 4 | . . 1 . 1 . . . . 2 Extermination . | . . . . . . . . . . Reinforcement 16 | . . . 2 3 2 4 . 1 4 Assault . | . . . . . . . . . . Garrison 1 | . . . . 1 . . . . . Intercept . | . . . . . . . . . . Searches Triggered . | . . . . . . . . . . Construction Impeded 1 | . . . . . . . . . 1 Haulers Reinforced 3 | . . . . 2 . 1 . . . Active Scanning Responses . | . . . . . . . . . . Cargo Convoy Interrupts . | . . . . . . . . . . Stealth | -11 -10 -9 -8 -7 -6 -5 -4 -4 -3 --------- Run | Yrd Mat Mat Mat Fac Fac Fac Fac DSF Res Distress Signals 8 | . 1 1 2 . 1 3 . . . Communications Jammed . | . . . . . . . . . . Distress Signals . | . . . . . . . . . . Times Spotted 130 | . 5 9 13 12 9 31 . 4 47 Peak Tracking Total 17 | . 3 3 4 4 2 15 . 3 17 Tactical Retreats 15 | . 1 . 2 1 . 3 . 1 7 Traps | -11 -10 -9 -8 -7 -6 -5 -4 -4 -3 ------- Run | Yrd Mat Mat Mat Fac Fac Fac Fac DSF Res Traps Triggered 4 | . . 1 . . 1 1 . . 1 Indirectly . | . . . . . . . . . . Trap Hack Attempts . | . . . . . . . . . . Triggered . | . . . . . . . . . . Disarmed . | . . . . . . . . . . Reprogrammed . | . . . . . . . . . . Reused . | . . . . . . . . . . Traps Extracted . | . . . . . . . . . . Installed . | . . . . . . . . . . Triggered . | . . . . . . . . . . Machines | -11 -10 -9 -8 -7 -6 -5 -4 -4 -3 ---------- Run | Yrd Mat Mat Mat Fac Fac Fac Fac DSF Res Machines Disabled 2 | . . 1 . . . . . . 1 Max in Single Turn 1 | . . 1 . . . . . . 1 Machines Repaired . | . . . . . . . . . . Machines Dismantled . | . . . . . . . . . . Machines Sabotaged . | . . . . . . . . . . Overloaded Fab Kills . | . . . . . . . . . . Hacking | -11 -10 -9 -8 -7 -6 -5 -4 -4 -3 --------- Run | Yrd Mat Mat Mat Fac Fac Fac Fac DSF Res Machines Accessed 18 | . 4 4 2 1 1 2 1 . 3 Terminals 15 | . 4 3 2 . 1 2 1 . 2 Fabricators 1 | . . . . 1 . . . . . Repair Stations . | . . . . . . . . . . Recycling Units . | . . . . . . . . . . Scanalyzers 1 | . . 1 . . . . . . . Garrison Access 1 | . . . . . . . . . 1 Total Hacks 38 | . 6 9 5 3 2 4 2 . 7 Successful 17 | . 2 7 2 2 1 1 1 . 1 Failed 21 | . 4 2 3 1 1 3 1 . 6 Catastrophic 7 | . 2 . 2 . 1 . . . 2 Database Lockouts . | . . . . . . . . . . Manual 18 | . 4 4 5 . 2 1 . . 2 Terminals 29 | . 6 6 5 . 2 4 2 . 4 Fabricators 3 | . . . . 3 . . . . . Repair Stations . | . . . . . . . . . . Recycling Units . | . . . . . . . . . . Scanalyzers 3 | . . 3 . . . . . . . Garrison Access 3 | . . . . . . . . . 3 Terminal Hacks 12 | . 2 4 2 . 1 1 1 . 1 Prototype ID Bank 1 | . . 1 . . . . . . . Open DSF 2 | . . . . . . . 1 . 1 Alert Level 1 | . . . . . . 1 . . . Unreport Threat 7 | . 1 3 2 . 1 . . . . Locate Traps 1 | . 1 . . . . . . . . Fabricator Hacks 2 | . . . . 2 . . . . . Load Schematic 1 | . . . . 1 . . . . . Build 1 | . . . . 1 . . . . . Repair Station Hacks . | . . . . . . . . . . Recycling Unit Hacks . | . . . . . . . . . . Scanalyzer 3 | . . 3 . . . . . . . Insert Component 1 | . . 1 . . . . . . . Analyze 2 | . . 2 . . . . . . . Garrison Access Hacks . | . . . . . . . . . . Unauthorized Hacks . | . . . . . . . . . . Terminals . | . . . . . . . . . . Fabricators . | . . . . . . . . . . Repair Stations . | . . . . . . . . . . Recycling Units . | . . . . . . . . . . Scanalyzers . | . . . . . . . . . . Garrison Access . | . . . . . . . . . . Data Cores Recovered 3 | . . 1 1 . 1 . . . . Used 1 | . . 1 . . . . . . . Hacking Detections 13 | . 3 3 1 1 . 2 1 . 2 Full Trace Events 4 | . . 1 . 1 . . . . 2 Feedback Events 1 | . . . . . . . . . 1 Corruption 1 | . . . . . . . . . 1 Feedback Blocked . | . . . . . . . . . . Robot Schematics Acquired . | . . . . . . . . . . Robots Built . | . . . . . . . . . . Authchips . | . . . . . . . . . . Time . | . . . . . . . . . . Total Robot Build Rating . | . . . . . . . . . . Part Schematics Acquired 1 | . . 1 . . . . . . . Parts Built 1 | . . . . 1 . . . . . Authchips . | . . . . . . . . . . Time 99 | . . . . 99 . . . . . Total Part Build Rating 2 | . . . . 2 . . . . . Parts Repaired . | . . . . . . . . . . Time . | . . . . . . . . . . Parts Recycled . | . . . . . . . . . . Recycled Matter . | . . . . . . . . . . Retrieved Matter . | . . . . . . . . . . Retrieved Components . | . . . . . . . . . . Parts Scanalyzed 1 | . . 1 . . . . . . . Part Schematics Acquired 1 | . . 1 . . . . . . . Parts Damaged . | . . . . . . . . . . Bothacking | -11 -10 -9 -8 -7 -6 -5 -4 -4 -3 ------------ Run | Yrd Mat Mat Mat Fac Fac Fac Fac DSF Res Used RIF Installer . | . . . . . . . . . . Robots Hacked . | . . . . . . . . . . Non-combat . | . . . . . . . . . . Combat . | . . . . . . . . . . Robot Hacks Applied . | . . . . . . . . . . Relay Couplers Released . | . . . . . . . . . . Fabnet Peak Effective % . | . . . . . . . . . . Robots Rewired 1 | . . . . . 1 . . . . Allies Hacked . | . . . . . . . . . . Hacks Repelled . | . . . . . . . . . . Allies | -11 -10 -9 -8 -7 -6 -5 -4 -4 -3 -------- Run | Yrd Mat Mat Mat Fac Fac Fac Fac DSF Res Total Allies 4 | . . . . . 4 . . . . Largest Group 4 | . . . . . 4 3 . . . Highest-Rated Group 123 | . . . . . 123 92 . . . Highest-Rated Ally 31 | . . . . . 31 31 . . . Total Orders . | . . . . . . . . . . Ally Attacks 19 | . . . . . 7 12 . . . Total Damage 271 | . . . . . 189 82 . . . Kills 3 | . . . . . 1 2 . . . Allies Corrupted . | . . . . . . . . . . Allies Melted . | . . . . . . . . . . Intel | -11 -10 -9 -8 -7 -6 -5 -4 -4 -3 ------- Run | Yrd Mat Mat Mat Fac Fac Fac Fac DSF Res Robot Analysis Total . | . . . . . . . . . . Derelict Logs Recovered . | . . . . . . . . . . Drone Launches . | . . . . . . . . . . Drone Recoveries . | . . . . . . . . . . Exploration | -11 -10 -9 -8 -7 -6 -5 -4 -4 -3 ------------- Run | Yrd Mat Mat Mat Fac Fac Fac Fac DSF Res Turns Passed 3281 | 94 468 455 405 408 614 603 4 31 199 Spaces Moved 3420 | 72 266 281 335 385 545 908 14 95 519 Core 33 | 11 . . 2 . . . . . 20 Treads . | . . . . . . . . . . Legs 724 | 61 266 281 116 . . . . . . Wheels . | . . . . . . . . . . Hover . | . . . . . . . . . . Flight 2663 | . . . 217 385 545 908 14 95 499 Fastest Speed 7 | 50 120 120 27 24 15 7 17 16 24 Average Speed 45 | 112 151 132 63 24 17 14 17 20 29 Slowest Speed 440 | 120 190 260 440 25 95 89 17 29 50 Overloaded Moves 84 | . . . . . . 54 . . 30 Propulsion Burnouts . | . . . . . . . . . . Robots Hopped 56 | . . . 10 7 23 7 . 1 8 Cave-ins Triggered . | . . . . . . . . . . Exploration Rate (%) 26 | 5 44 31 24 10 17 29 1 86 20 Regions Visited 9 Branch Regions . Pre-discovered Areas . | . . . . . . . . . . Known Exits Taken 1 | . . . . . . . 1 . . Unknown Exits Taken 7 | 1 1 1 1 1 1 1 . . . Scrap Searched . | . . . . . . . . . . Spaces Dug . | . . . . . . . . . . Terrain Destroyed 54 | . 1 2 . . . 6 . . 45 Melee . | . . . . . . . . . . Projectile 3 | . 1 2 . . . . . . . AOE 51 | . . . . . . 6 . . 45 Terrain Rammed . | . . . . . . . . . . Walls Destroyed . | . . . . . . . . . . Machines Disabled . | . . . . . . . . . . Actions | -11 -10 -9 -8 -7 -6 -5 -4 -4 -3 --------- Run | Yrd Mat Mat Mat Fac Fac Fac Fac DSF Res Total 4981 | 82 316 342 508 678 1038 1355 14 105 543 Wait 1338 | . 27 14 138 256 486 412 . . 5 Move 3311 | 71 265 280 317 370 506 894 13 92 503 Hop 44 | . . . 7 7 15 6 . 1 8 Pick Up 42 | 3 6 7 11 7 3 2 . 2 1 Fast Attach 50 | 7 3 7 5 4 6 7 . 4 7 Attach 28 | . . 1 7 2 2 6 1 . 9 Detach 14 | 1 2 1 4 . . 1 . 4 1 Swap 20 | . 1 2 2 8 4 3 . . . Drop 59 | . 3 14 8 15 9 8 . 2 . Fire 67 | . 9 16 8 9 . 16 . . 9 Melee . | . . . . . . . . . . Ram . | . . . . . . . . . . Kick 1 | . . . 1 . . . . . . Crush . | . . . . . . . . . . Escape Stasis . | . . . . . . . . . . Rewire 7 | . . . . . 7 . . . . Trap . | . . . . . . . . . . Miscellaneous . | . . . . . . . . . . Route ------- -11/Scrapyard -10/Materials (discovered 2 exits: *Mat / [*Min]) -9/Materials -8/Materials -7/Factory -6/Factory -5/Factory -4/Factory -4/DSF -3/Research History --------- Turn | Location | Event 3 | -11/Scrapyard | Discovered new exit (range 16) 95 | -11/Scrapyard | Entered Materials 301 | -10/Materials | Build established: Mutant 302 | -10/Materials | Discovered new exit (range 8) 502 | -10/Materials | Discovered new exit (range 15) 563 | -10/Materials | Entered another Materials area 563 | -9/Materials | Evolved 2 slots: Propulsion x1, Utility x1 999 | -9/Materials | Discovered new exit (range 15) 1018 | -9/Materials | Entered another Materials area 1018 | -8/Materials | Evolved 2 slots: Propulsion x2 1205 | -8/Materials | Met 7R-MNS 1415 | -8/Materials | Discovered new exit (range 5) 1423 | -8/Materials | Entered Factory 1423 | -7/Factory | Evolved 2 slots: Power x1, Propulsion x1 1424 | -7/Factory | Caught up to 7R-MNS 1489 | -7/Factory | Build established: Sprinter 1597 | -7/Factory | Fabricated Imp. Flight Unit? 1615 | -7/Factory | Garrison activated, responded to threat 1809 | -7/Factory | Discovered new exit (range 15) 1831 | -7/Factory | Entered another Factory area 1831 | -6/Factory | Evolved 2 slots: Propulsion x2 1832 | -6/Factory | Caught up to 7R-MNS 2289 | -6/Factory | Allied Derelicts emerged from ambush trap array 2431 | -6/Factory | Discovered new exit (range 9) 2445 | -6/Factory | Entered another Factory area 2445 | -5/Factory | Accompanied by 3 allies 2445 | -5/Factory | Evolved 2 slots: Utility x2 2446 | -5/Factory | Caught up to 7R-MNS 2833 | -5/Factory | Lost 3 allies 2968 | -5/Factory | 7R-MNS lamented failing the tripod run 3015 | -5/Factory | Spotted B-75 Beast 3047 | -5/Factory | Discovered new exit (range 15) 3048 | -5/Factory | Entered another Factory area 3048 | -4/Factory | Evolved 2 slots: Propulsion x2 3052 | -4/Factory | Identified exit to DSF 3052 | -4/Factory | Entered DSF 3078 | -4/DSF | Additional patrols routed to DSF 3078 | -4/DSF | Discovered new exit (range 16) 3083 | -4/DSF | Entered Research 3083 | -3/Research | Evolved 2 slots: Propulsion x2 3111 | -3/Research | Lost 13 parts (1p7n4u1w) 3197 | -3/Research | Lost 8 parts (2p6n) 3269 | -3/Research | Core integrity fell below 50% 3275 | -3/Research | Core integrity fell below 20% 3278 | -3/Research | System corruption reached 10% 3282 | -3/Research | Destroyed by S-43 Plague with Heavy Machine Gun Last Messages --------------- 03267_ Imp. Surge Thruster destroyed. 03267_ Impulse Thruster Array destroyed. 03270_ Penetrated by Slug. 03271_ Slug penetrates Wall. 03271_ Slug penetrates C-35 Carver. 03271_ C-35 Carver destroyed. 03271_ Slug penetrates Wall. 03272_ Adv. Signal Interpreter severed. 03273_ Penetrated by Slug. 03273_ Slug penetrates C-35 Carver. 03273_ S-43 Plague destroyed. 03275_ Slug penetrates Reinforced Barrier. 03276_ C-35 Carver destroyed. 03276_ S-43 Plague destroyed. 03276_ Penetrated by Slug. 03277_ Acquired Imp. Surge Thruster. 03279_ Imp. Surge Thruster destroyed. 03280_ Acquired Xenon Bombardment Thruster. 03280_ DSF Access disabled. 03281_ Xenon Bombardment Thruster destroyed. Map ----- +----------------------------------------------------+ | + + #????????????????????????????? | | # # ! #????????????????????????????? | | # # #????????????????????????????? | | + #? #????????????????????????????? | | ########/############????????????????????????????? | | ??# ! #?????????????????????????????????? | | ??# #?????????????????????????????????? | | ??# #????##############???????????????? | | ??# """ "" #????# #???????????????? | | ??# """ """ #??### #???????????????? | | ??# """ """ #??#"" ! #???????????????? | | ??# """ """ #??#"" #???????????????? | | ??# """ """ #??#"" ?????????????????? | | ??# """ """ #??#G """ """ #???????????????? | | ??# #??#"" """ """ #???????????????? | | ??# #??#"" """ """ #???????????????? | | ??# #??#"" """ """ #???????????????? | | ??########+#####??### """ """ #???????????????? | | ?????????# #????????# #???????????????? | | ?????????# #?????#### #???????????????? | | ?????????# ####### ######+#######???????????????? | | ?????????# ! th #???????????????????? | | ??????#### %! %s= ###?????????????????? | | ??????# / [s= # #########?????????? | | ??????# %=s # !! #?????????? | | ??????# @ # !! #?????????? | | ??????# #### #### # #?????????? | | ??????# ???# #??# # #?????????? | | ??????#????# #??# # #?????????? | | ???????????# #??# pY# #?????????? | | ???????????# #??# # ""T""????????????? | | ???????????#+#??# + """""????????????? | | ????????????????# ########????????????? | | ????????????????# #???????????????????? | | ????????????????# #???????????????????? | | ????????????????# #???????????????????? | | ????????????????# #???????????????????? | | ????????????????+ #???????????????????? | | ????????????????# #?????????? ????????? | | ????????????????# #????????? ??????? | | ????????????????## ### #????????? ^ ???? | | ?????????????????# ??# #????????? ??? | | ?????????????????# ???# #????????# ??? | | ?????????????????# ????# #????????# ???? | | ?????????????????#?????# #????????# ???? | | ???????????????????????# #????????# """???? | | ???????????????????????# #????????# """??? | | ???????????????????????# ########## """? | | ???????????????????????# """ | | ???????????????????????# """ | +----------------------------------------------------+ Best States ------------- Heat Dissipation 81 Coolant Potential 80 Energy Generation 32 Energy Capacity 480 Matter Stores 300 Matter Capacity 300 Sight Range 16 Terrain Scan Density 10 Additional Mass Support 9 Propulsion Shielding 66 Evasion (%) 70 Targeting Accuracy 5 Target Analysis 5 Offensive Hacking 10 Item Schematics ----------------- Imp. Flight Unit | -9/Materials | Scanalyzed Robot Schematics ------------------ None Fabricated ------------ Imp. Flight Unit | x1 | -7/Factory Alien Tech Used ----------------- None Achievements -------------- None Challenges ------------ None Game ------ Seed GravitonMolecularScanner Manual? 0 Play Time 00:39:30 Cumulative 163.1 hours Start 2024.05.10 @ 18:32:40 End 2024.05.10 @ 19:12:05 Sessions 1 Manual Loads 0 Difficulty Rogue Special Mode None Game No. 324 Rogue 324 Adventurer 0 Explorer 0 Win Type - Total 0 Types 0/0/0/0/0/0/0/0/0 Lore% 39 Gallery% 60 Achievement% 42 Wizard Run 0 Options --------- Layout 0 ASCII 0 Keyboard 1 Movement Numpad Keybinds 0 Fullscreen 2 Font 18/X11 Map View 76x50 Zoom Use 0% Tactical HUD 1 Map Filters NONE Filters NONE Steam 1 RUN: 84173ed2-5af0-4188-91dc-130be4b7081e